[Event "Niedersachsen-ch A 2024"]
[Site "Verden Aller"]
[Date "2024.01.06"]
[Round "6.23"]
[White "Schramm, Kilian"]
[Black "Kiesel, Harald"]
[Result "0-1"]
[ECO "C00"]
[WhiteElo "1729"]
[BlackElo "1975"]
[Annotator "NA RC"]
[PlyCount "93"]
[EventDate "2024.01.01"]
[EventType "swiss"]
[EventCountry "GER"]
[SourceTitle "playchess.com"]
[Source "ChessBase"]
[SourceQuality "1"]
[TimeControl "40/5400+30:1800+30"]

1. e4 {[%emt 0:00:02]} e6 {[%emt 0:00:06]} 2. d3 {[%emt 0:00:05]} d5 {[%emt 0:00:09]} 3. Nd2 {[%emt 0:00:03]} Nf6 {[%emt 0:00:14]} 4. Ngf3 {[%emt 0:00:04]} Be7 {[%emt 0:00:31]} 5. g3 {[%emt 0:00:25]} c5 {[%emt 0:00:08]} 6. Bg2 {[%emt 0:00:04]} O-O {[%emt 0:01:01]} 7. O-O {[%emt 0:00:07]} Nc6 {[%emt 0:01:57]} 8. Re1 {[%emt 0:00:37]} b5 {[%emt 0:02:04]} 9. Qe2 {[%emt 0:03:12]} a5 {[%emt 0:02:12]} 10. e5 {[%emt 0:04:17]} Nd7 {[%emt 0:00:32]} 11. h4 {[%emt 0:00:20]} Ba6 {[%emt 0:01:05]} 12. Nf1 {[%emt 0:04:09]} Qc7 {[%emt 0:04:46]} 13. g4 {[%emt 0:02:30]} Rfc8 {[%emt 0:01:52]} 14. h5 {[%emt 0:02:16]} Nd4 {[%emt 0:03:19]} 15. Nxd4 {[%emt 0:17:25]} cxd4 {[%emt 0:00:07]} 16. Bd2 {[%emt 0:00:56]} b4 {[%emt 0:01:56]} 17. Rac1 {[%emt 0:01:25]} a4 {[%emt 0:04:16]} 18. g5 {[%emt 0:01:39]} Qd8 {[%emt 0:07:38]} 19. Qg4 {[%emt 0:00:27]} Nf8 {[%emt 0:19:19]} 20. h6 {[%emt 0:15:53]} g6 {[%emt 0:04:30]} 21. Qxd4 {[%emt 0:00:24]} Bxg5 {[%emt 0:00:27]} 22. Qxb4 {[%emt 0:00:10]} Rcb8 {[%emt 0:03:39]} 23. Qc3 {[%emt 0:02:30]} Bxd2 {[%emt 0:03:38]} 24. Nxd2 {[%emt 0:02:45]} Qh4 {[%emt 0:02:45]} 25. b3 {[%emt 0:07:07]} Rc8 {[%emt 0:03:34]} 26. Qb2 {[%emt 0:02:11]} Qxh6 {[%emt 0:06:17]} 27. c4 {[%emt 0:00:57]} a3 {[%emt 0:07:06]} 28. Qc3 {[%emt 0:01:17]} d4 {[%emt 0:05:03]} 29. Qc2 {[%emt 0:03:50]} Rab8 {[%emt 0:00:39]} 30. Re4 {[%emt 0:05:20]} Bb7 {[%emt 0:01:10]} 31. Rg4 {[%emt 0:00:30]} Qh5 {[%emt 0:02:32]} 32. Rxd4 {[%emt 0:02:42]} Qxe5 {[%emt 0:00:45]} 33. Rg4 {[%emt 0:01:00]} h5 {[%emt 0:01:08]} 34. Bxb7 {[%emt 0:01:34]} hxg4 {[%emt 0:00:59]} 35. Bxc8 {[%emt 0:00:41]} Rxc8 {[%emt 0:00:06]} 36. Qc3 {[%emt 0:00:30]} Qf4 {[%emt 0:01:07]} 37. Ne4 {[%emt 0:00:22]} Nd7 {[%emt 0:03:21]} 38. b4 {[%emt 0:01:19]} f5 {[%emt 0:01:08]} 39. Ng3 {[%emt 0:00:29]} Ne5 {[%emt 0:00:34]} 40. b5 {[%emt 0:03:46]} Nxd3 {[%emt 0:03:55]} 41. Rc2 {[%emt 0:33:01]} Ne5 {[%emt 0:32:42]} 42. c5 {[%emt 0:02:38]} Rd8 {[%emt 0:00:00]} 43. Kf1 {[%emt 0:00:00]} Rd3 {[%emt 0:00:00]} 44. Qxd3 {[%emt 0:00:00]} Nxd3 {[%emt 0:00:00]} 45. c6 {[%emt 0:00:00]} Qc7 {[%emt 0:00:00]} 46. b6 {[%emt 0:00:00]} Qxb6 {[%emt 0:00:00]} 47. c7 {[%emt 0:13:01]} 0-1

[Event "Niedersachsen-ch A 2024"]
[Site "Verden Aller"]
[Date "2024.01.06"]
[Round "6.24"]
[White "Lehmkuhl, Stefan"]
[Black "Kieselbach, Marvin"]
[Result "1/2-1/2"]
[ECO "A13"]
[WhiteElo "1839"]
[BlackElo "1926"]
[Annotator "NA RC"]
[PlyCount "28"]
[EventDate "2024.01.01"]
[EventType "swiss"]
[EventCountry "GER"]
[SourceTitle "playchess.com"]
[Source "ChessBase"]
[SourceQuality "1"]
[TimeControl "40/5400+30:1800+30"]

1. c4 {[%emt 0:00:22]} e6 {[%emt 0:00:04]} 2. e3 {[%emt 0:00:35]} d5 {[%emt 0:00:20]} 3. a3 {[%emt 0:00:32]} Nf6 {[%emt 0:00:27]} 4. Qc2 {[%emt 0:01:31]} Be7 {[%emt 0:02:20]} 5. Nf3 {[%emt 0:01:02]} O-O {[%emt 0:00:12]} 6. b3 {[%emt 0:01:57]} c5 {[%emt 0:01:13]} 7. Bb2 {[%emt 0:00:40]} b6 {[%emt 0:00:59]} 8. Be2 {[%emt 0:00:31]} Bb7 {[%emt 0:00:07]} 9. O-O {[%emt 0:03:31]} Nc6 {[%emt 0:00:52]} 10. Nc3 {[%emt 0:01:58]} Rc8 {[%emt 0:09:05]} 11. Rfd1 {[%emt 0:00:44]} d4 {[%emt 0:01:56]} 12. exd4 {[%emt 0:01:57]} cxd4 {[%emt 0:05:19]} 13. Ne4 {[%emt 0:06:05]} Na5 {[%emt 0:12:02]} 14. Ng3 {[%emt 0:04:54]} Nc6 {[%emt 0:08:58]} 1/2-1/2

[Event "Niedersachsen-ch A 2024"]
[Site "Verden Aller"]
[Date "2024.01.06"]
[Round "6.25"]
[White "Bisa, Gani"]
[Black "Monnerjahn, Lukas"]
[Result "0-1"]
[ECO "E01"]
[WhiteElo "1931"]
[BlackElo "1856"]
[Annotator "NA"]
[PlyCount "136"]
[EventDate "2024.01.01"]
[EventType "swiss"]
[EventCountry "GER"]
[SourceTitle "playchess.com"]
[Source "ChessBase"]
[SourceQuality "1"]
[TimeControl "40/5400+30:1800+30"]

1. d4 {[%emt 0:00:06]} d5 {[%emt 0:00:07]} 2. c4 {[%emt 0:00:05]} e6 {[%emt 0:00:04]} 3. Nf3 {[%emt 0:00:11]} Nf6 {[%emt 0:00:06]} 4. Nc3 {[%emt 0:00:15]} c6 {[%emt 0:00:10]} 5. g3 {[%emt 0:00:20]} dxc4 {[%emt 0:00:38]} 6. a4 {[%emt 0:00:18]} Bb4 {[%emt 0:03:00]} 7. Bg2 {[%emt 0:00:51]} Nbd7 {[%emt 0:01:59]} 8. O-O {[%emt 0:01:30]} O-O {[%emt 0:00:18]} 9. Qc2 {[%emt 0:00:47]} a5 {[%emt 0:09:46]} 10. Bg5 {[%emt 0:00:25]} h6 {[%emt 0:04:48]} 11. Bxf6 {[%emt 0:01:07]} Nxf6 {[%emt 0:00:50]} 12. e4 {[%emt 0:02:07]} b6 {[%emt 0:05:26]} 13. Rfd1 {[%emt 0:00:55]} Bb7 {[%emt 0:03:01]} 14. Ne5 {[%emt 0:00:16]} Qc7 {[%emt 0:04:28]} 15. Nxc4 {[%emt 0:00:18]} Rfd8 {[%emt 0:01:23]} 16. Ne3 {[%emt 0:03:58]} Rd7 {[%emt 0:03:22]} 17. Rac1 {[%emt 0:02:03]} Qd8 {[%emt 0:03:01]} 18. Ne2 {[%emt 0:01:47]} Rc8 {[%emt 0:01:17]} 19. b3 {[%emt 0:02:36]} Ba6 {[%emt 0:02:20]} 20. Nc4 {[%emt 0:02:04]} b5 {[%emt 0:04:25]} 21. Ne5 {[%emt 0:00:46]} Rd6 {[%emt 0:00:09]} 22. Qd3 {[%emt 0:05:29]} Qb6 {[%emt 0:04:19]} 23. h3 {[%emt 0:03:55]} bxa4 {[%emt 0:00:38]} 24. Nc4 {[%emt 0:00:13]} Bxc4 {[%emt 0:04:14]} 25. bxc4 {[%emt 0:00:02]} Rdd8 {[%emt 0:00:32]} 26. e5 {[%emt 0:01:40]} Nd7 {[%emt 0:04:58]} 27. Qe3 {[%emt 0:02:16]} a3 {[%emt 0:03:06]} 28. Ra1 {[%emt 1:08:10]} Nf8 {[%emt 0:01:52]} 29. Rdb1 {[%emt 0:00:00]} Qa6 {[%emt 0:01:20]} 30. Qb3 {[%emt 0:00:00]} c5 {[%emt 0:03:33]} 31. dxc5 {[%emt 0:00:00]} Rxc5 {[%emt 0:01:52]} 32. Rc1 {[%emt 0:00:00]} Rxe5 {[%emt 0:01:31]} 33. Bf1 {[%emt 0:00:00]} Rc5 {[%emt 0:05:36]} 34. Nc3 {[%emt 0:00:00]} Qc8 {[%emt 0:03:33]} 35. Nb5 {[%emt 0:00:00]} Nd7 {[%emt 0:00:47]} 36. Rd1 {[%emt 0:00:00]} Ne5 {[%emt 0:01:24]} 37. Rxd8+ {[%emt 0:00:00]} Qxd8 {[%emt 0:00:01]} 38. Rd1 {[%emt 0:00:00]} Qb6 {[%emt 0:05:05]} 39. Nxa3 {[%emt 0:00:00]} Rc8 {[%emt 0:00:43]} 40. Nc2 {[%emt 0:00:00]} Rb8 {[%emt 0:06:52]} 41. g4 {[%emt 0:00:00]} Qc7 {[%emt 0:32:39]} 42. Qg3 {[%emt 0:00:00]} Bd6 {[%emt 0:01:16]} 43. Qe3 {[%emt 0:00:08]} a4 {[%emt 0:00:00]} 44. Kh1 {[%emt 0:00:00]} Rb3 {[%emt 0:00:00]} 45. Qe4 {[%emt 0:00:00]} Bc5 {[%emt 0:00:00]} 46. f4 {[%emt 0:00:00]} Ng6 {[%emt 0:00:00]} 47. Nd4 {[%emt 0:00:00]} Rb2 {[%emt 0:00:00]} 48. Ne2 {[%emt 0:00:00]} a3 {[%emt 0:00:00]} 49. f5 {[%emt 0:03:46]} exf5 {[%emt 0:00:00]} 50. Qxf5 {[%emt 0:04:41]} Qc6+ {[%emt 0:00:19]} 51. Bg2 {[%emt 0:00:50]} Qxg2+ {[%emt 0:00:29]} 52. Kxg2 {[%emt 0:00:23]} Nh4+ {[%emt 0:00:01]} 53. Kf1 {[%emt 0:01:03]} Nxf5 {[%emt 0:00:01]} 54. gxf5 {[%emt 0:00:21]} a2 {[%emt 0:00:33]} 55. Nc3 {[%emt 0:00:24]} Bb4 {[%emt 0:02:16]} 56. Nxa2 {[%emt 0:03:06]} Rxa2 {[%emt 0:00:07]} 57. Rd5 {[%emt 0:00:33]} Kf8 {[%emt 0:00:46]} 58. Rb5 {[%emt 0:00:12]} Bd6 {[%emt 0:01:48]} 59. c5 {[%emt 0:00:31]} Bg3 {[%emt 0:00:26]} 60. c6 {[%emt 0:00:17]} Rc2 {[%emt 0:00:27]} 61. Rb6 {[%emt 0:01:43]} Ke7 {[%emt 0:00:40]} 62. Rb7+ {[%emt 0:01:29]} Kf6 {[%emt 0:00:09]} 63. Rb6 {[%emt 0:00:59]} Kxf5 {[%emt 0:00:14]} 64. Rb3 {[%emt 0:00:32]} Be5 {[%emt 0:00:48]} 65. Rb6 {[%emt 0:01:30]} h5 {[%emt 0:00:41]} 66. Ke1 {[%emt 0:01:14]} g5 {[%emt 0:00:21]} 67. Kd1 {[%emt 0:00:08]} Rc3 {[%emt 0:00:06]} 68. Kd2 {[%emt 0:01:27]} f6 {[%emt 0:00:12]} 0-1

[Event "Niedersachsen-ch A 2024"]
[Site "Verden Aller"]
[Date "2024.01.06"]
[Round "6.26"]
[White "Moerke, Niklas"]
[Black "Hesse, Juergen"]
[Result "0-1"]
[ECO "C57"]
[WhiteElo "1800"]
[BlackElo "1931"]
[Annotator "NA RC"]
[PlyCount "68"]
[EventDate "2024.01.01"]
[EventType "swiss"]
[EventCountry "GER"]
[SourceTitle "playchess.com"]
[Source "ChessBase"]
[SourceQuality "1"]
[TimeControl "40/5400+30:1800+30"]

1. e4 {[%emt 0:00:02]} e5 {[%emt 0:00:08]} 2. Nf3 {[%emt 0:00:01]} Nc6 {[%emt 0:00:09]} 3. Bc4 {[%emt 0:00:02]} Nf6 {[%emt 0:00:40]} 4. Ng5 {[%emt 0:01:54]} d5 {[%emt 0:00:51]} 5. exd5 {[%emt 0:00:05]} b5 {[%emt 0:01:33]} 6. Bf1 {[%emt 0:03:36]} Nd4 {[%emt 0:04:13]} 7. c3 {[%emt 0:03:45]} Nxd5 {[%emt 0:02:50]} 8. Nxf7 {[%emt 0:03:24]} Kxf7 {[%emt 0:00:57]} 9. cxd4 {[%emt 0:00:35]} exd4 {[%emt 0:14:44]} 10. Qf3+ {[%emt 0:02:02]} Kg8 {[%emt 0:02:34]} 11. Bxb5 {[%emt 0:03:00]} Qe7+ {[%emt 0:05:47]} 12. Be2 {[%emt 0:01:13]} Be6 {[%emt 0:06:42]} 13. O-O {[%emt 0:01:03]} Rd8 {[%emt 0:01:38]} 14. Na3 {[%emt 0:02:02]} Qd7 {[%emt 0:07:35]} 15. Nc4 {[%emt 0:01:35]} Nf6 {[%emt 0:03:16]} 16. h3 {[%emt 0:04:21]} d3 {[%emt 0:06:29]} 17. Ne5 {[%emt 0:01:30]} dxe2 {[%emt 0:00:30]} 18. Nxd7 {[%emt 0:01:55]} exf1=Q+ {[%emt 0:00:18]} 19. Kxf1 {[%emt 0:00:16]} Rxd7 {[%emt 0:00:55]} 20. d3 {[%emt 0:04:01]} Kf7 {[%emt 0:05:46]} 21. Bg5 {[%emt 0:02:14]} Be7 {[%emt 0:00:58]} 22. b3 {[%emt 0:01:28]} Rhd8 {[%emt 0:01:17]} 23. Bxf6 {[%emt 0:04:00]} Bxf6 {[%emt 0:01:05]} 24. Qh5+ {[%emt 0:02:23]} Kg8 {[%emt 0:01:10]} 25. Rd1 {[%emt 0:00:42]} Bd4 {[%emt 0:04:45]} 26. Re1 {[%emt 0:01:57]} Bf7 {[%emt 0:00:46]} 27. Qg4 {[%emt 0:03:50]} Bb6 {[%emt 0:02:55]} 28. Rd1 {[%emt 0:02:15]} Rd4 {[%emt 0:03:41]} 29. Qf5 {[%emt 0:01:21]} Bg6 {[%emt 0:02:57]} 30. Qe6+ {[%emt 0:00:20]} Kh8 {[%emt 0:00:06]} 31. Re1 {[%emt 0:00:57]} Rxd3 {[%emt 0:02:33]} 32. h4 {[%emt 0:00:50]} Rd2 {[%emt 0:01:59]} 33. Qe7 {[%emt 0:03:46]} Rxf2+ {[%emt 0:00:39]} 34. Kg1 {[%emt 0:00:05]} Re2+ {[%emt 0:00:29]} 0-1

[Event "Niedersachsen-ch A 2024"]
[Site "Verden Aller"]
[Date "2024.01.06"]
[Round "6.27"]
[White "Thomas, Jeremy"]
[Black "Burnus, Finn Crispin"]
[Result "0-1"]
[ECO "C47"]
[WhiteElo "1893"]
[BlackElo "1655"]
[Annotator "NA RC"]
[PlyCount "80"]
[EventDate "2024.01.01"]
[EventType "swiss"]
[EventCountry "GER"]
[SourceTitle "playchess.com"]
[Source "ChessBase"]
[SourceQuality "1"]
[TimeControl "40/5400+30:1800+30"]

1. e4 {[%emt 0:00:03]} e5 {[%emt 0:00:05]} 2. Nf3 {[%emt 0:00:03]} Nc6 {[%emt 0:00:06]} 3. Nc3 {[%emt 0:00:02]} Nf6 {[%emt 0:00:08]} 4. d4 {[%emt 0:00:03]} exd4 {[%emt 0:00:06]} 5. Nxd4 {[%emt 0:00:02]} Bb4 {[%emt 0:00:19]} 6. Nxc6 {[%emt 0:00:08]} bxc6 {[%emt 0:00:02]} 7. Bd3 {[%emt 0:00:09]} O-O {[%emt 0:01:09]} 8. O-O {[%emt 0:00:08]} d5 {[%emt 0:00:14]} 9. exd5 {[%emt 0:00:20]} cxd5 {[%emt 0:00:10]} 10. Bg5 {[%emt 0:00:08]} c6 {[%emt 0:01:20]} 11. Qf3 {[%emt 0:00:22]} h6 {[%emt 0:11:05]} 12. Bxf6 {[%emt 0:04:50]} Qxf6 {[%emt 0:00:08]} 13. Qxf6 {[%emt 0:00:09]} gxf6 {[%emt 0:00:07]} 14. Ne2 {[%emt 0:00:45]} Bd6 {[%emt 0:04:44]} 15. Ng3 {[%emt 0:02:16]} Re8 {[%emt 0:05:35]} 16. c3 {[%emt 0:04:49]} Bxg3 {[%emt 0:09:51]} 17. hxg3 {[%emt 0:00:38]} Bg4 {[%emt 0:01:47]} 18. Rfe1 {[%emt 0:00:49]} Bh5 {[%emt 0:00:39]} 19. Ba6 {[%emt 0:01:12]} Re6 {[%emt 0:04:19]} 20. b4 {[%emt 0:00:40]} Rb8 {[%emt 0:01:39]} 21. f3 {[%emt 0:01:23]} Bg6 {[%emt 0:05:13]} 22. a4 {[%emt 0:01:40]} Rb6 {[%emt 0:09:21]} 23. Bc8 {[%emt 0:01:37]} Rxe1+ {[%emt 0:00:10]} 24. Rxe1 {[%emt 0:00:06]} c5 {[%emt 0:00:09]} 25. b5 {[%emt 0:00:52]} Kf8 {[%emt 0:02:15]} 26. Bd7 {[%emt 0:01:08]} Rd6 {[%emt 0:00:30]} 27. Bc6 {[%emt 0:02:48]} d4 {[%emt 0:01:09]} 28. c4 {[%emt 0:00:18]} Bc2 {[%emt 0:06:24]} 29. Re8+ {[%emt 0:02:47]} Kg7 {[%emt 0:00:24]} 30. a5 {[%emt 0:00:14]} d3 {[%emt 0:02:42]} 31. Be4 {[%emt 0:00:21]} Bb1 {[%emt 0:00:21]} 32. b6 {[%emt 0:03:15]} axb6 {[%emt 0:04:53]} 33. a6 {[%emt 0:00:08]} d2 {[%emt 0:00:47]} 34. a7 {[%emt 0:00:26]} d1=Q+ {[%emt 0:00:17]} 35. Kh2 {[%emt 0:00:01]} Bxe4 {[%emt 0:00:13]} 36. fxe4 {[%emt 0:00:27]} Qh5+ {[%emt 0:00:08]} 37. Kg1 {[%emt 0:00:05]} Rd1+ {[%emt 0:06:27]} 38. Kf2 {[%emt 0:00:09]} Rd2+ {[%emt 0:00:05]} 39. Ke3 {[%emt 0:01:26]} Qg5+ {[%emt 0:02:04]} 40. Kf3 {[%emt 0:00:04]} Rd3+ {[%emt 0:00:15]} 0-1

[Event "Niedersachsen-ch A 2024"]
[Site "Verden Aller"]
[Date "2024.01.06"]
[Round "6.28"]
[White "Schiller, Jan-Hendrik"]
[Black "Nuerenberg, Marius"]
[Result "1/2-1/2"]
[ECO "E17"]
[WhiteElo "1881"]
[BlackElo "1764"]
[Annotator "NA RC"]
[PlyCount "70"]
[EventDate "2024.01.01"]
[EventType "swiss"]
[EventCountry "GER"]
[SourceTitle "playchess.com"]
[Source "ChessBase"]
[SourceQuality "1"]
[TimeControl "40/5400+30:1800+30"]

1. Nf3 {[%emt 0:00:02]} Nf6 {[%emt 0:00:05]} 2. g3 {[%emt 0:00:18]} b6 {[%emt 0:00:06]} 3. Bg2 {[%emt 0:00:19]} Bb7 {[%emt 0:00:03]} 4. O-O {[%emt 0:00:40]} e6 {[%emt 0:00:02]} 5. c4 {[%emt 0:00:37]} Be7 {[%emt 0:00:07]} 6. b3 {[%emt 0:00:58]} O-O {[%emt 0:00:39]} 7. Bb2 {[%emt 0:00:53]} d5 {[%emt 0:06:18]} 8. cxd5 {[%emt 0:02:27]} exd5 {[%emt 0:00:09]} 9. d4 {[%emt 0:01:46]} Re8 {[%emt 0:04:02]} 10. Nc3 {[%emt 0:01:34]} c5 {[%emt 0:03:32]} 11. Rc1 {[%emt 0:02:56]} Nc6 {[%emt 0:06:18]} 12. Re1 {[%emt 0:09:38]} cxd4 {[%emt 0:21:43]} 13. Nb5 {[%emt 0:08:05]} Bb4 {[%emt 0:04:12]} 14. Rf1 {[%emt 0:01:04]} a6 {[%emt 0:16:01]} 15. Nbxd4 {[%emt 0:00:34]} Nxd4 {[%emt 0:00:06]} 16. Nxd4 {[%emt 0:01:32]} Bc5 {[%emt 0:06:19]} 17. e3 {[%emt 0:02:54]} a5 {[%emt 0:04:01]} 18. a4 {[%emt 0:04:44]} Qd7 {[%emt 0:01:30]} 19. Qf3 {[%emt 0:06:06]} Ne4 {[%emt 0:13:20]} 20. Rfd1 {[%emt 0:00:40]} f6 {[%emt 0:01:06]} 21. h4 {[%emt 0:03:09]} Qe7 {[%emt 0:02:01]} 22. Nf5 {[%emt 0:05:59]} Qe6 {[%emt 0:00:07]} 23. Qg4 {[%emt 0:02:16]} g6 {[%emt 0:00:36]} 24. Nh6+ {[%emt 0:00:29]} Kg7 {[%emt 0:00:08]} 25. Qxe6 {[%emt 0:01:55]} Rxe6 {[%emt 0:00:05]} 26. Ng4 {[%emt 0:00:31]} Rf8 {[%emt 0:02:08]} 27. Bd4 {[%emt 0:01:30]} Bxd4 {[%emt 0:02:01]} 28. Rxd4 {[%emt 0:00:40]} f5 {[%emt 0:00:29]} 29. Nh2 {[%emt 0:01:00]} Rc6 {[%emt 0:02:41]} 30. Rxc6 {[%emt 0:01:03]} Bxc6 {[%emt 0:00:01]} 31. Nf3 {[%emt 0:03:04]} Kf6 {[%emt 0:00:16]} 32. Rd1 {[%emt 0:00:40]} Bb7 {[%emt 0:01:34]} 33. Rc1 {[%emt 0:01:06]} Rc8 {[%emt 0:00:02]} 34. Rxc8 {[%emt 0:00:23]} Bxc8 {[%emt 0:00:01]} 35. Nd4 {[%emt 0:00:40]} Ke5 {[%emt 0:06:11]} 1/2-1/2

[Event "Niedersachsen-ch A 2024"]
[Site "Verden Aller"]
[Date "2024.01.06"]
[Round "6.29"]
[White "Zweigait, Leon"]
[Black "Aden, Keno"]
[Result "0-1"]
[ECO "D11"]
[WhiteElo "1526"]
[BlackElo "1832"]
[Annotator "NA"]
[PlyCount "94"]
[EventDate "2024.01.01"]
[EventType "swiss"]
[EventCountry "GER"]
[TimeControl "40/5400+30:1800+30"]

1. d4 {[%emt 0:00:03]} d5 {[%emt 0:00:12]} 2. Nf3 {[%emt 0:00:07]} Nf6 {[%emt 0:00:34]} 3. g3 {[%emt 0:00:08]} Bf5 {[%emt 0:01:07]} 4. Bg2 {[%emt 0:00:13]} e6 {[%emt 0:00:08]} 5. O-O {[%emt 0:00:12]} Be7 {[%emt 0:00:06]} 6. c4 {[%emt 0:00:41]} c6 {[%emt 0:00:16]} 7. Nbd2 {[%emt 0:00:21]} Nbd7 {[%emt 0:01:08]} 8. Re1 {[%emt 0:01:16]} h6 {[%emt 0:01:34]} 9. Ne5 {[%emt 0:09:12]} O-O {[%emt 0:09:06]} 10. Nxd7 {[%emt 0:06:31]} Qxd7 {[%emt 0:00:18]} 11. c5 {[%emt 0:11:23]} b6 {[%emt 0:07:14]} 12. b4 {[%emt 0:00:07]} a5 {[%emt 0:01:01]} 13. a4 {[%emt 0:01:54]} axb4 {[%emt 0:02:47]} 14. cxb6 {[%emt 0:01:09]} Rfb8 {[%emt 0:00:12]} 15. a5 {[%emt 0:00:46]} Rxb6 {[%emt 0:00:11]} 16. axb6 {[%emt 0:00:04]} Rxa1 {[%emt 0:00:05]} 17. Nb3 {[%emt 0:00:10]} Ra8 {[%emt 0:02:25]} 18. Nc5 {[%emt 0:00:35]} Qd8 {[%emt 0:00:27]} 19. b7 {[%emt 0:06:02]} Ra1 {[%emt 0:25:29]} 20. Qd2 {[%emt 0:18:52]} Bxc5 {[%emt 0:06:15]} 21. dxc5 {[%emt 0:00:14]} Qb8 {[%emt 0:00:48]} 22. Qxb4 {[%emt 0:00:14]} Ra7 {[%emt 0:04:20]} 23. Bf4 {[%emt 0:00:44]} Rxb7 {[%emt 0:03:14]} 24. Qd4 {[%emt 0:01:43]} Rb1 {[%emt 0:05:52]} 25. Qc3 {[%emt 0:07:46]} Rxe1+ {[%emt 0:02:18]} 26. Qxe1 {[%emt 0:00:08]} Qb5 {[%emt 0:00:17]} 27. Bd6 {[%emt 0:00:27]} Nd7 {[%emt 0:09:55]} 28. e4 {[%emt 0:00:59]} Bxe4 {[%emt 0:02:11]} 29. Bxe4 {[%emt 0:00:11]} dxe4 {[%emt 0:00:04]} 30. Qxe4 {[%emt 0:00:51]} Nxc5 {[%emt 0:00:12]} 31. Bxc5 {[%emt 0:03:09]} Qxc5 {[%emt 0:00:07]} 32. Qa4 {[%emt 0:00:23]} Qd5 {[%emt 0:00:28]} 33. Kf1 {[%emt 0:00:46]} g6 {[%emt 0:02:04]} 34. Qa8+ {[%emt 0:00:17]} Kg7 {[%emt 0:00:54]} 35. Ke2 {[%emt 0:00:10]} c5 {[%emt 0:14:41]} 36. Qa5 {[%emt 0:00:50]} Qd4 {[%emt 0:00:00]} 37. Qa2 {[%emt 0:00:41]} c4 {[%emt 0:00:00]} 38. Qc2 {[%emt 0:00:06]} e5 {[%emt 0:00:00]} 39. f3 {[%emt 0:00:06]} h5 {[%emt 0:00:00]} 40. h4 {[%emt 0:01:17]} Qg1 {[%emt 0:00:00]} 41. Qxc4 {[%emt 0:30:14]} Qxg3 {[%emt 0:24:42]} 42. Qe4 {[%emt 0:00:06]} Qf4 {[%emt 0:00:24]} 43. Qd5 {[%emt 0:00:41]} Qd4 {[%emt 0:00:41]} 44. Qb5 {[%emt 0:00:47]} Qxh4 {[%emt 0:02:16]} 45. Qxe5+ {[%emt 0:00:08]} Qf6 {[%emt 0:00:05]} 46. Qc5 {[%emt 0:00:32]} h4 {[%emt 0:00:42]} 47. Qc8 {[%emt 0:00:24]} Qe6+ {[%emt 0:00:22]} 0-1

[Event "Niedersachsen-ch A 2024"]
[Site "Verden Aller"]
[Date "2024.01.06"]
[Round "6.30"]
[White "Hoke, Adrian"]
[Black "Kozik, Andreas"]
[Result "1-0"]
[ECO "C04"]
[WhiteElo "1765"]
[BlackElo "1912"]
[Annotator "NA RC"]
[PlyCount "43"]
[EventDate "2024.01.01"]
[EventType "swiss"]
[EventCountry "GER"]
[SourceTitle "playchess.com"]
[Source "ChessBase"]
[SourceQuality "1"]
[TimeControl "40/5400+30:1800+30"]

1. e4 {[%emt 1:31:00]} e6 {[%emt 0:00:07]} 2. d4 {[%emt 0:00:00]} d5 {[%emt 0:00:07]} 3. Nd2 {[%emt 0:00:00]} Nc6 {[%emt 0:00:17]} 4. c3 {[%emt 0:00:00]} e5 {[%emt 0:00:11]} 5. exd5 {[%emt 0:00:00]} Qxd5 {[%emt 0:00:16]} 6. Ngf3 {[%emt 0:00:00]} exd4 {[%emt 0:01:10]} 7. Bc4 {[%emt 0:00:00]} Qf5 {[%emt 0:01:15]} 8. O-O {[%emt 0:00:00]} Bd6 {[%emt 0:05:02]} 9. Re1+ {[%emt 0:00:00]} Nge7 {[%emt 0:03:05]} 10. Ne4 {[%emt 0:00:00]} O-O {[%emt 0:17:12]} 11. Nxd6 {[%emt 0:00:00]} cxd6 {[%emt 0:00:14]} 12. Nxd4 {[%emt 0:00:00]} Qc5 {[%emt 0:18:06]} 13. Bb3 {[%emt 0:00:00]} Nxd4 {[%emt 0:15:23]} 14. cxd4 {[%emt 0:00:00]} Qc7 {[%emt 0:00:12]} 15. Bg5 {[%emt 0:00:00]} Ng6 {[%emt 0:00:56]} 16. Rc1 {[%emt 0:00:00]} Qd7 {[%emt 0:03:07]} 17. h4 {[%emt 0:00:00]} h6 {[%emt 0:08:57]} 18. h5 {[%emt 0:00:00]} hxg5 {[%emt 0:00:20]} 19. hxg6 {[%emt 0:00:00]} d5 {[%emt 0:00:09]} 20. Qf3 {[%emt 0:00:00]} fxg6 {[%emt 0:04:00]} 21. Bxd5+ {[%emt 0:00:00]} Kh7 {[%emt 0:00:30]} 22. Qxf8 {[%emt 0:00:00]} 1-0

[Event "Niedersachsen-ch A 2024"]
[Site "Verden Aller"]
[Date "2024.01.06"]
[Round "6.31"]
[White "Arndt, Felix"]
[Black "Gehrke, Mathias"]
[Result "1-0"]
[ECO "D53"]
[WhiteElo "1901"]
[BlackElo "1761"]
[Annotator "NA RC"]
[PlyCount "82"]
[EventDate "2024.01.01"]
[EventType "swiss"]
[EventCountry "GER"]
[SourceTitle "playchess.com"]
[Source "ChessBase"]
[SourceQuality "1"]
[TimeControl "40/5400+30:1800+30"]

1. d4 {[%emt 0:03:59]} d5 {[%emt 0:00:07]} 2. c4 {[%emt 0:00:11]} e6 {[%emt 0:00:09]} 3. Nf3 {[%emt 0:00:52]} Nf6 {[%emt 0:00:09]} 4. Bg5 {[%emt 0:00:10]} Be7 {[%emt 0:00:14]} 5. e3 {[%emt 0:00:13]} Ne4 {[%emt 0:01:06]} 6. Bxe7 {[%emt 0:00:57]} Qxe7 {[%emt 0:00:08]} 7. Qb3 {[%emt 0:01:45]} c6 {[%emt 0:01:59]} 8. Bd3 {[%emt 0:00:49]} f5 {[%emt 0:00:21]} 9. Nc3 {[%emt 0:01:52]} Nd7 {[%emt 0:00:33]} 10. O-O {[%emt 0:00:41]} Ndf6 {[%emt 0:04:17]} 11. Bxe4 {[%emt 0:01:04]} Nxe4 {[%emt 0:00:44]} 12. Nxe4 {[%emt 0:00:24]} fxe4 {[%emt 0:00:26]} 13. Ne5 {[%emt 0:00:34]} O-O {[%emt 0:00:24]} 14. a4 {[%emt 0:02:31]} Qc7 {[%emt 0:04:44]} 15. Rac1 {[%emt 0:04:01]} Qe7 {[%emt 0:03:52]} 16. f3 {[%emt 0:10:22]} exf3 {[%emt 0:00:13]} 17. Rxf3 {[%emt 0:00:15]} Rxf3 {[%emt 0:00:07]} 18. Nxf3 {[%emt 0:00:30]} Rb8 {[%emt 0:05:24]} 19. Ne5 {[%emt 0:07:56]} Bd7 {[%emt 0:00:21]} 20. cxd5 {[%emt 0:12:32]} exd5 {[%emt 0:05:14]} 21. Rxc6 {[%emt 0:04:48]} Bxc6 {[%emt 0:01:33]} 22. Nxc6 {[%emt 0:00:11]} bxc6 {[%emt 0:00:44]} 23. Qxb8+ {[%emt 0:00:15]} Kf7 {[%emt 0:00:18]} 24. Kf2 {[%emt 0:03:18]} h6 {[%emt 0:03:09]} 25. a5 {[%emt 0:06:22]} Qh4+ {[%emt 0:08:12]} 26. Kf1 {[%emt 0:03:32]} Qh5 {[%emt 0:00:45]} 27. Qxa7+ {[%emt 0:12:34]} Kf6 {[%emt 0:00:08]} 28. Qa6 {[%emt 0:02:23]} Qd1+ {[%emt 0:00:10]} 29. Kf2 {[%emt 0:00:14]} Qd2+ {[%emt 0:00:07]} 30. Kf3 {[%emt 0:01:56]} Qd1+ {[%emt 0:01:55]} 31. Qe2 {[%emt 0:00:36]} Qb1 {[%emt 0:00:09]} 32. Kf2 {[%emt 0:03:25]} Ke7 {[%emt 0:00:09]} 33. h3 {[%emt 0:03:14]} Kd6 {[%emt 0:00:54]} 34. Qd2 {[%emt 0:00:52]} c5 {[%emt 0:03:08]} 35. dxc5+ {[%emt 0:00:42]} Kc6 {[%emt 0:02:05]} 36. Qb4 {[%emt 0:02:57]} Qc2+ {[%emt 0:00:07]} 37. Kg3 {[%emt 0:01:29]} Qe2 {[%emt 0:07:28]} 38. Qb6+ {[%emt 0:01:07]} Kd7 {[%emt 0:00:09]} 39. c6+ {[%emt 0:00:23]} Ke7 {[%emt 0:00:08]} 40. Qc5+ {[%emt 0:01:13]} Kf6 {[%emt 0:00:58]} 41. c7 {[%emt 0:32:17]} d4 {[%emt 0:30:07]} 1-0